[Event "Titled Tuesday Blitz March 28 Early 2023"]
[White "Floresvillar Gonzalez, Luis Migu"]
[Black "Tarnowska, Aleksandra"]
[WhiteFideId "5100542"]
[BlackFideId "1180967"]
[WhiteElo "2040"]
[BlackElo "1776"]
[Result "1-0"]
[Round "10"]
[TimeControl "180+2"]
[Date "2023.03.28"]
[WhiteClock "0:00:17"]
[BlackClock "0:00:01"]

1. d4 {[%clk 0:02:57]}  d5 {[%clk 0:03:00]} 2. c3 {[%clk 0:02:56]}  Nf6 {[%clk 0:03:00]} 3. Bg5 {[%clk 0:02:56]}  e6 {[%clk 0:02:56]} 4. Nd2 {[%clk 0:02:53]}  Be7 {[%clk 0:02:55]} 5. e3 {[%clk 0:02:53]}  h6 {[%clk 0:02:55]} 6. Bh4 {[%clk 0:02:52]}  O-O {[%clk 0:02:52]} 7. Bd3 {[%clk 0:02:51]}  c5 {[%clk 0:02:52]} 8. Ngf3 {[%clk 0:02:47]}  b6 {[%clk 0:02:49]} 9. Qe2 {[%clk 0:02:45]}  Bb7 {[%clk 0:02:46]} 10. Ne5 {[%clk 0:02:45]}  Nbd7 {[%clk 0:02:42]} 11. f4 {[%clk 0:02:44]}  Ne4 {[%clk 0:02:36]} 12. Bxe7 {[%clk 0:02:40]}  Qxe7 {[%clk 0:02:36]} 13. O-O {[%clk 0:02:40]}  Ndf6 {[%clk 0:02:04]} 14. Rf3 {[%clk 0:02:36]}  a5 {[%clk 0:01:40]} 15. Raf1 {[%clk 0:02:25]}  a4 {[%clk 0:01:37]} 16. a3 {[%clk 0:02:23]}  Rfd8 {[%clk 0:00:55]} 17. Rh3 {[%clk 0:01:55]}  Nxd2 {[%clk 0:00:48]} 18. Qxd2 {[%clk 0:01:15]}  Ba6 {[%clk 0:00:35]} 19. Rff3 {[%clk 0:01:13]}  Bxd3 {[%clk 0:00:31]} 20. Qxd3 {[%clk 0:01:13]}  Rdc8 {[%clk 0:00:16]} 21. f5 {[%clk 0:01:13]}  cxd4 {[%clk 0:00:13]} 22. exd4 {[%clk 0:01:12]}  Rc7 {[%clk 0:00:10]} 23. fxe6 {[%clk 0:01:11]}  Qxe6 {[%clk 0:00:10]} 24. Rh4 {[%clk 0:01:01]}  Ne4 {[%clk 0:00:09]} 25. Rhf4 {[%clk 0:00:59]}  f6 {[%clk 0:00:07]} 26. Ng6 {[%clk 0:00:46]}  Re8 {[%clk 0:00:04]} 27. h3 {[%clk 0:00:44]}  Ng5 {[%clk 0:00:04]} 28. Rg3 {[%clk 0:00:39]}  Qe1+ {[%clk 0:00:03]} 29. Kh2 {[%clk 0:00:39]}  Re2 {[%clk 0:00:02]} 30. Qb5 {[%clk 0:00:30]}  Rc8 {[%clk 0:00:01]} 31. Qd7 {[%clk 0:00:28]}  Ra8 {[%clk 0:00:01]} 32. Nh4 {[%clk 0:00:19]}  Qc1 {[%clk 0:00:01]} 33. Nf5 {[%clk 0:00:17]} 1-0


[Site "https://www.chess.com"]

[Event "Titled Tuesday Blitz March 28 Early 2023"]
[White "Abrosimov, Vladimir"]
[Black "dDobravcan"]
[WhiteFideId "4166892"]
[WhiteElo "2336"]
[BlackElo "2144"]
[Result "0-1"]
[Round "10"]
[TimeControl "180+2"]
[Date "2023.03.28"]
[WhiteClock "0:00:42"]
[BlackClock "0:00:46"]

1. c4 {[%clk 0:03:00]}  d6 {[%clk 0:02:56]} 2. Nc3 {[%clk 0:03:00]}  e5 {[%clk 0:02:55]} 3. g3 {[%clk 0:03:00]}  f5 {[%clk 0:02:54]} 4. Bg2 {[%clk 0:03:00]}  Nf6 {[%clk 0:02:55]} 5. d3 {[%clk 0:03:01]}  Be7 {[%clk 0:02:54]} 6. e4 {[%clk 0:03:01]}  O-O {[%clk 0:02:55]} 7. Nge2 {[%clk 0:03:01]}  c6 {[%clk 0:02:54]} 8. O-O {[%clk 0:03:01]}  Qe8 {[%clk 0:02:51]} 9. f4 {[%clk 0:03:02]}  Qh5 {[%clk 0:02:41]} 10. h3 {[%clk 0:02:51]}  fxe4 {[%clk 0:02:40]} 11. Nxe4 {[%clk 0:02:46]}  Nxe4 {[%clk 0:02:33]} 12. dxe4 {[%clk 0:02:46]}  Bxh3 {[%clk 0:02:33]} 13. f5 {[%clk 0:02:45]}  Nd7 {[%clk 0:02:30]} 14. Nc3 {[%clk 0:02:36]}  Bg4 {[%clk 0:02:24]} 15. Bf3 {[%clk 0:02:35]}  Nf6 {[%clk 0:02:24]} 16. Bxg4 {[%clk 0:02:25]}  Nxg4 {[%clk 0:02:23]} 17. Rf2 {[%clk 0:02:23]}  Qh1+ {[%clk 0:02:19]} 18. Kxh1 {[%clk 0:02:21]}  Nxf2+ {[%clk 0:02:20]} 19. Kg2 {[%clk 0:02:21]}  Nxd1 {[%clk 0:02:19]} 20. Nxd1 {[%clk 0:02:22]}  d5 {[%clk 0:02:14]} 21. cxd5 {[%clk 0:02:22]}  cxd5 {[%clk 0:02:14]} 22. exd5 {[%clk 0:02:23]}  Rad8 {[%clk 0:02:12]} 23. Ne3 {[%clk 0:02:22]}  Bc5 {[%clk 0:02:10]} 24. a3 {[%clk 0:02:19]}  Bxe3 {[%clk 0:02:04]} 25. Bxe3 {[%clk 0:02:20]}  Rxd5 {[%clk 0:02:03]} 26. Bxa7 {[%clk 0:02:18]}  Rd2+ {[%clk 0:01:58]} 27. Kf3 {[%clk 0:02:17]}  Rxb2 {[%clk 0:01:56]} 28. Ke4 {[%clk 0:02:17]}  Re2+ {[%clk 0:01:54]} 29. Kd3 {[%clk 0:02:17]}  Rg2 {[%clk 0:01:53]} 30. Ke4 {[%clk 0:02:14]}  Rxg3 {[%clk 0:01:48]} 31. Kxe5 {[%clk 0:02:14]}  Rf3 {[%clk 0:01:44]} 32. Rb1 {[%clk 0:02:09]}  R3xf5+ {[%clk 0:01:43]} 33. Ke4 {[%clk 0:02:09]}  R5f7 {[%clk 0:01:41]} 34. Ke5 {[%clk 0:02:06]}  Re8+ {[%clk 0:01:42]} 35. Kd6 {[%clk 0:02:06]}  h5 {[%clk 0:01:40]} 36. Bb6 {[%clk 0:02:03]}  g6 {[%clk 0:01:38]} 37. Bc7 {[%clk 0:02:02]}  Kh7 {[%clk 0:01:35]} 38. Rxb7 {[%clk 0:02:01]}  Ree7 {[%clk 0:01:33]} 39. a4 {[%clk 0:02:01]}  Rd7+ {[%clk 0:01:27]} 40. Kc6 {[%clk 0:01:58]}  Rd1 {[%clk 0:01:26]} 41. a5 {[%clk 0:01:56]}  Rf6+ {[%clk 0:01:24]} 42. Kc5 {[%clk 0:01:49]}  Rc1+ {[%clk 0:01:23]} 43. Kd5 {[%clk 0:01:43]}  Rf5+ {[%clk 0:01:20]} 44. Be5+ {[%clk 0:01:38]}  Kh6 {[%clk 0:01:18]} 45. a6 {[%clk 0:01:37]}  Rd1+ {[%clk 0:01:14]} 46. Ke6 {[%clk 0:01:32]}  Re1 {[%clk 0:01:14]} 47. Rb5 {[%clk 0:01:22]}  Rfxe5+ {[%clk 0:01:11]} 48. Rxe5 {[%clk 0:01:18]}  Ra1 {[%clk 0:01:12]} 49. Kf7 {[%clk 0:01:12]}  Rxa6 {[%clk 0:01:10]} 50. Rb5 {[%clk 0:01:11]}  h4 {[%clk 0:01:09]} 51. Rb4 {[%clk 0:01:02]}  g5 {[%clk 0:01:09]} 52. Rb8 {[%clk 0:01:01]}  g4 {[%clk 0:01:05]} 53. Rh8+ {[%clk 0:00:59]}  Kg5 {[%clk 0:01:04]} 54. Rg8+ {[%clk 0:00:59]}  Kf4 {[%clk 0:01:04]} 55. Rb8 {[%clk 0:00:57]}  h3 {[%clk 0:01:03]} 56. Rb4+ {[%clk 0:00:57]}  Kg5 {[%clk 0:01:02]} 57. Rb5+ {[%clk 0:00:57]}  Kh4 {[%clk 0:01:01]} 58. Rb2 {[%clk 0:00:56]}  g3 {[%clk 0:01:00]} 59. Rb4+ {[%clk 0:00:56]}  Kg5 {[%clk 0:01:00]} 60. Rb5+ {[%clk 0:00:56]}  Kf4 {[%clk 0:00:59]} 61. Rb4+ {[%clk 0:00:56]}  Ke5 {[%clk 0:00:56]} 62. Rb5+ {[%clk 0:00:56]}  Kd4 {[%clk 0:00:56]} 63. Rb4+ {[%clk 0:00:56]}  Kc3 {[%clk 0:00:54]} 64. Rh4 {[%clk 0:00:41]}  h2 {[%clk 0:00:52]} 65. Rh3 {[%clk 0:00:41]}  Kd4 {[%clk 0:00:52]} 66. Rxg3 {[%clk 0:00:37]}  h1=Q {[%clk 0:00:51]} 67. Rg4+ {[%clk 0:00:38]}  Qe4 {[%clk 0:00:49]} 68. Rxe4+ {[%clk 0:00:35]}  Kxe4 {[%clk 0:00:49]} 69. Ke7 {[%clk 0:00:36]}  Ke5 {[%clk 0:00:48]} 70. Kd7 {[%clk 0:00:37]}  Rh6 {[%clk 0:00:48]} 71. Kc7 {[%clk 0:00:38]}  Kd5 {[%clk 0:00:48]} 72. Kd7 {[%clk 0:00:39]}  Rh7+ {[%clk 0:00:47]} 73. Ke8 {[%clk 0:00:40]}  Ra7 {[%clk 0:00:46]} 74. Kf8 {[%clk 0:00:41]}  Ke6 {[%clk 0:00:46]} 75. Kg8 {[%clk 0:00:41]}  Kf6 {[%clk 0:00:46]} 76. Kh8 {[%clk 0:00:41]}  Kg6 {[%clk 0:00:46]} 77. Kg8 {[%clk 0:00:42]}  Ra8# {[%clk 0:00:46]} 0-1


[Site "https://www.chess.com"]

[Event "Titled Tuesday Blitz March 28 Early 2023"]
[White "Chemin, Justo Reinaldo"]
[Black "Vemparala, Nikash"]
[WhiteFideId "2101580"]
[BlackFideId "30960967"]
[WhiteElo "1940"]
[BlackElo "2023"]
[Result "0-1"]
[Round "10"]
[TimeControl "180+2"]
[Date "2023.03.28"]
[WhiteClock "0:00:01"]
[BlackClock "0:00:29"]

1. e4 {[%clk 0:03:00]}  e5 {[%clk 0:02:56]} 2. Nf3 {[%clk 0:03:00]}  Nc6 {[%clk 0:02:56]} 3. Bb5 {[%clk 0:03:00]}  Nf6 {[%clk 0:02:56]} 4. d3 {[%clk 0:02:58]}  Bc5 {[%clk 0:02:54]} 5. O-O {[%clk 0:02:55]}  Nd4 {[%clk 0:02:53]} 6. Nxd4 {[%clk 0:02:49]}  Bxd4 {[%clk 0:02:54]} 7. c3 {[%clk 0:02:47]}  Bb6 {[%clk 0:02:55]} 8. Nd2 {[%clk 0:02:39]}  c6 {[%clk 0:02:54]} 9. Ba4 {[%clk 0:02:38]}  O-O {[%clk 0:02:53]} 10. Nc4 {[%clk 0:02:36]}  Bc7 {[%clk 0:02:52]} 11. Bb3 {[%clk 0:02:29]}  d5 {[%clk 0:02:51]} 12. exd5 {[%clk 0:02:25]}  cxd5 {[%clk 0:02:52]} 13. Ne3 {[%clk 0:02:24]}  Be6 {[%clk 0:02:39]} 14. d4 {[%clk 0:02:23]}  e4 {[%clk 0:02:35]} 15. f4 {[%clk 0:02:09]}  exf3 {[%clk 0:02:23]} 16. Qxf3 {[%clk 0:02:07]}  Qe8 {[%clk 0:02:22]} 17. Nxd5 {[%clk 0:01:56]}  Nxd5 {[%clk 0:02:08]} 18. Bxd5 {[%clk 0:01:57]}  Bxd5 {[%clk 0:02:09]} 19. Qxd5 {[%clk 0:01:56]}  Rd8 {[%clk 0:02:03]} 20. Qxb7 {[%clk 0:01:50]}  Qd7 {[%clk 0:01:58]} 21. Qf3 {[%clk 0:01:47]}  Rfe8 {[%clk 0:01:49]} 22. Bf4 {[%clk 0:01:24]}  Bxf4 {[%clk 0:01:43]} 23. Qxf4 {[%clk 0:01:24]}  Qb5 {[%clk 0:01:44]} 24. Qxf7+ {[%clk 0:01:19]}  Kh8 {[%clk 0:01:44]} 25. Qf2 {[%clk 0:01:10]}  h6 {[%clk 0:01:41]} 26. Rae1 {[%clk 0:01:08]}  Rf8 {[%clk 0:01:40]} 27. Qxf8+ {[%clk 0:01:04]}  Rxf8 {[%clk 0:01:41]} 28. Rxf8+ {[%clk 0:01:03]}  Kh7 {[%clk 0:01:42]} 29. Rf2 {[%clk 0:01:03]}  Qa6 {[%clk 0:01:37]} 30. a3 {[%clk 0:01:01]}  Qb5 {[%clk 0:01:37]} 31. h3 {[%clk 0:01:01]}  Qb3 {[%clk 0:01:36]} 32. Re5 {[%clk 0:00:59]}  Qd1+ {[%clk 0:01:32]} 33. Kh2 {[%clk 0:00:58]}  Qb3 {[%clk 0:01:24]} 34. Re7 {[%clk 0:00:55]}  Kg6 {[%clk 0:01:20]} 35. Rff7 {[%clk 0:00:50]}  Qxb2 {[%clk 0:01:15]} 36. Rxg7+ {[%clk 0:00:50]}  Kf6 {[%clk 0:01:04]} 37. d5 {[%clk 0:00:33]}  Qb8+ {[%clk 0:01:00]} 38. Kg1 {[%clk 0:00:24]}  Qb1+ {[%clk 0:00:58]} 39. Kh2 {[%clk 0:00:24]}  Qb8+ {[%clk 0:00:58]} 40. Rc7 {[%clk 0:00:22]}  Qb5 {[%clk 0:00:41]} 41. Rgf7+ {[%clk 0:00:14]}  Kg6 {[%clk 0:00:35]} 42. c4 {[%clk 0:00:13]}  Qb2 {[%clk 0:00:34]} 43. Rg7+ {[%clk 0:00:12]}  Kh5 {[%clk 0:00:31]} 44. Rg4 {[%clk 0:00:10]}  Qe5+ {[%clk 0:00:30]} 45. Rg3 {[%clk 0:00:07]}  Qxc7 {[%clk 0:00:30]} 46. h4 {[%clk 0:00:03]}  Kxh4 {[%clk 0:00:29]} 47. d6 {[%clk 0:00:01]}  Qxd6 {[%clk 0:00:29]} 0-1


[Site "https://www.chess.com"]

[Event "Titled Tuesday Blitz March 28 Early 2023"]
[White "Sanchez, German"]
[Black "rionelG"]
[WhiteFideId "4403959"]
[WhiteElo "1816"]
[BlackElo "2220"]
[Result "0-1"]
[Round "10"]
[TimeControl "180+2"]
[Date "2023.03.28"]
[WhiteClock "0:00:01"]
[BlackClock "0:00:12"]

1. e4 {[%clk 0:02:45]}  c5 {[%clk 0:02:56]} 2. d4 {[%clk 0:02:45]}  cxd4 {[%clk 0:02:57]} 3. c3 {[%clk 0:02:46]}  dxc3 {[%clk 0:02:57]} 4. Nxc3 {[%clk 0:02:45]}  d6 {[%clk 0:02:57]} 5. Nf3 {[%clk 0:02:36]}  Nc6 {[%clk 0:02:56]} 6. Bc4 {[%clk 0:02:36]}  a6 {[%clk 0:02:44]} 7. O-O {[%clk 0:02:29]}  Nf6 {[%clk 0:02:42]} 8. Bg5 {[%clk 0:02:30]}  e6 {[%clk 0:02:35]} 9. e5 {[%clk 0:02:13]}  dxe5 {[%clk 0:02:26]} 10. Qxd8+ {[%clk 0:01:33]}  Nxd8 {[%clk 0:02:26]} 11. Nxe5 {[%clk 0:01:30]}  Be7 {[%clk 0:02:18]} 12. Rfd1 {[%clk 0:01:21]}  Nd7 {[%clk 0:02:11]} 13. Bf4 {[%clk 0:00:56]}  Nxe5 {[%clk 0:01:55]} 14. Bxe5 {[%clk 0:00:55]}  O-O {[%clk 0:01:55]} 15. Ne4 {[%clk 0:00:50]}  Nc6 {[%clk 0:01:50]} 16. Bg3 {[%clk 0:00:49]}  Rd8 {[%clk 0:01:37]} 17. Bc7 {[%clk 0:00:37]}  Rxd1+ {[%clk 0:01:29]} 18. Rxd1 {[%clk 0:00:38]}  b5 {[%clk 0:01:19]} 19. Bb3 {[%clk 0:00:35]}  Bb7 {[%clk 0:01:15]} 20. Rd7 {[%clk 0:00:32]}  Bf6 {[%clk 0:00:55]} 21. Nxf6+ {[%clk 0:00:06]}  gxf6 {[%clk 0:00:55]} 22. Bf4 {[%clk 0:00:04]}  Na5 {[%clk 0:00:44]} 23. Bh6 {[%clk 0:00:03]}  Nxb3 {[%clk 0:00:37]} 24. Rxb7 {[%clk 0:00:02]}  Nd4 {[%clk 0:00:28]} 25. Rc7 {[%clk 0:00:02]}  Rd8 {[%clk 0:00:23]} 26. Be3 {[%clk 0:00:02]}  Nf5 {[%clk 0:00:23]} 27. Kf1 {[%clk 0:00:03]}  Nxe3+ {[%clk 0:00:22]} 28. fxe3 {[%clk 0:00:04]}  Rd2 {[%clk 0:00:22]} 29. Ra7 {[%clk 0:00:04]}  Rxb2 {[%clk 0:00:22]} 30. Rxa6 {[%clk 0:00:04]}  f5 {[%clk 0:00:21]} 31. e4 {[%clk 0:00:05]}  fxe4 {[%clk 0:00:21]} 32. Ra3 {[%clk 0:00:05]}  f5 {[%clk 0:00:19]} 33. h3 {[%clk 0:00:03]}  Kg7 {[%clk 0:00:19]} 34. g4 {[%clk 0:00:04]}  Kf6 {[%clk 0:00:18]} 35. gxf5 {[%clk 0:00:04]}  exf5 {[%clk 0:00:18]} 36. h4 {[%clk 0:00:04]}  f4 {[%clk 0:00:18]} 37. h5 {[%clk 0:00:04]}  f3 {[%clk 0:00:17]} 38. h6 {[%clk 0:00:03]}  Kf5 {[%clk 0:00:17]} 39. Ra8 {[%clk 0:00:01]}  Kf4 {[%clk 0:00:17]} 40. Rf8+ {[%clk 0:00:02]}  Ke3 {[%clk 0:00:16]} 41. Kg1 {[%clk 0:00:03]}  Rxa2 {[%clk 0:00:14]} 42. Kh1 {[%clk 0:00:02]}  Ra1+ {[%clk 0:00:12]} 43. Kh2 {[%clk 0:00:02]}  Ra6 {[%clk 0:00:12]} 44. Kg1 {[%clk 0:00:02]}  Rg6+ {[%clk 0:00:12]} 45. Kf1 {[%clk 0:00:01]}  Rxh6 {[%clk 0:00:12]} 0-1


[Site "https://www.chess.com"]

[Event "Titled Tuesday Blitz March 28 Early 2023"]
[White "Nan, M K Khine Hlyan"]
[Black "Aanna12"]
[WhiteFideId "13002899"]
[WhiteElo "1943"]
[BlackElo "2192"]
[Result "0-1"]
[Round "10"]
[TimeControl "180+2"]
[Date "2023.03.28"]
[WhiteClock "0:00:50"]
[BlackClock "0:01:06"]

1. e4 {[%clk 0:03:00]}  c5 {[%clk 0:02:59]} 2. Nf3 {[%clk 0:03:00]}  d6 {[%clk 0:02:58]} 3. d4 {[%clk 0:03:00]}  cxd4 {[%clk 0:02:58]} 4. Nxd4 {[%clk 0:03:00]}  Nf6 {[%clk 0:02:59]} 5. Nc3 {[%clk 0:03:00]}  a6 {[%clk 0:02:57]} 6. a4 {[%clk 0:02:51]}  e5 {[%clk 0:02:51]} 7. Nb3 {[%clk 0:02:48]}  Be6 {[%clk 0:02:47]} 8. Be2 {[%clk 0:02:46]}  Be7 {[%clk 0:02:47]} 9. O-O {[%clk 0:02:45]}  O-O {[%clk 0:02:43]} 10. Be3 {[%clk 0:02:45]}  d5 {[%clk 0:02:29]} 11. exd5 {[%clk 0:02:42]}  Nxd5 {[%clk 0:02:29]} 12. Nxd5 {[%clk 0:02:41]}  Bxd5 {[%clk 0:02:29]} 13. a5 {[%clk 0:02:27]}  Nc6 {[%clk 0:02:15]} 14. Bb6 {[%clk 0:02:27]}  Qd6 {[%clk 0:02:07]} 15. Bc5 {[%clk 0:02:13]}  Qe6 {[%clk 0:01:56]} 16. Bxe7 {[%clk 0:01:55]}  Nxe7 {[%clk 0:01:56]} 17. Nc5 {[%clk 0:01:54]}  Qc6 {[%clk 0:01:52]} 18. Nd3 {[%clk 0:01:39]}  Bxg2 {[%clk 0:01:32]} 19. Nxe5 {[%clk 0:01:39]}  Qe4 {[%clk 0:01:26]} 20. Bf3 {[%clk 0:01:27]}  Bxf3 {[%clk 0:01:24]} 21. Nxf3 {[%clk 0:01:17]}  Rad8 {[%clk 0:01:23]} 22. Qe1 {[%clk 0:01:04]}  Qg4+ {[%clk 0:01:21]} 23. Kh1 {[%clk 0:01:01]}  Qxf3+ {[%clk 0:01:21]} 24. Kg1 {[%clk 0:01:01]}  Rd4 {[%clk 0:01:20]} 25. h3 {[%clk 0:00:54]}  Qxh3 {[%clk 0:01:10]} 26. f3 {[%clk 0:00:53]}  Ng6 {[%clk 0:01:06]} 27. Qf2 {[%clk 0:00:50]} 0-1


[Site "https://www.chess.com"]

[Event "Titled Tuesday Blitz March 28 Early 2023"]
[White "Prado, Alexandra"]
[Black "Barria Santos, Jose Guilherme"]
[WhiteFideId "3301346"]
[BlackFideId "1939300"]
[WhiteElo "1759"]
[BlackElo "2301"]
[Result "0-1"]
[Round "10"]
[TimeControl "180+2"]
[Date "2023.03.28"]
[WhiteClock "0:00:08"]
[BlackClock "0:01:22"]

1. e4 {[%clk 0:02:59]}  c5 {[%clk 0:02:59]} 2. Nf3 {[%clk 0:02:54]}  d6 {[%clk 0:02:59]} 3. c3 {[%clk 0:02:54]}  Nf6 {[%clk 0:02:59]} 4. Be2 {[%clk 0:02:52]}  Nc6 {[%clk 0:02:57]} 5. d4 {[%clk 0:02:52]}  cxd4 {[%clk 0:02:57]} 6. cxd4 {[%clk 0:02:52]}  g6 {[%clk 0:02:48]} 7. d5 {[%clk 0:02:33]}  Ne5 {[%clk 0:02:46]} 8. Nxe5 {[%clk 0:02:33]}  dxe5 {[%clk 0:02:46]} 9. Nc3 {[%clk 0:02:25]}  Bd7 {[%clk 0:02:36]} 10. O-O {[%clk 0:02:21]}  Bg7 {[%clk 0:02:31]} 11. Bg5 {[%clk 0:01:53]}  O-O {[%clk 0:02:28]} 12. Rc1 {[%clk 0:01:43]}  a6 {[%clk 0:02:27]} 13. Qd2 {[%clk 0:01:41]}  Ne8 {[%clk 0:02:26]} 14. Rfd1 {[%clk 0:01:31]}  Nd6 {[%clk 0:02:25]} 15. f4 {[%clk 0:01:11]}  h6 {[%clk 0:02:14]} 16. fxe5 {[%clk 0:01:08]}  hxg5 {[%clk 0:01:51]} 17. exd6 {[%clk 0:01:07]}  exd6 {[%clk 0:01:52]} 18. Bd3 {[%clk 0:00:49]}  Be5 {[%clk 0:01:50]} 19. Rf1 {[%clk 0:00:32]}  Bf4 {[%clk 0:01:47]} 20. Qe2 {[%clk 0:00:26]}  Kg7 {[%clk 0:01:39]} 21. Rc2 {[%clk 0:00:20]}  Qb6+ {[%clk 0:01:37]} 22. Kh1 {[%clk 0:00:18]}  Rh8 {[%clk 0:01:37]} 23. h3 {[%clk 0:00:17]}  Bxh3 {[%clk 0:01:31]} 24. Qf2 {[%clk 0:00:14]}  Bd7+ {[%clk 0:01:26]} 25. Kg1 {[%clk 0:00:13]}  Be3 {[%clk 0:01:27]} 26. Na4 {[%clk 0:00:08]}  Bxf2+ {[%clk 0:01:26]} 27. Rfxf2 {[%clk 0:00:08]}  Qe3 {[%clk 0:01:22]} 0-1


[Site "https://www.chess.com"]

[Event "Titled Tuesday Blitz March 28 Early 2023"]
[White "Semenova, Alina"]
[Black "Garrido, Denis"]
[WhiteFideId "24113875"]
[BlackFideId "601217"]
[WhiteElo "1833"]
[BlackElo "2262"]
[Result "0-1"]
[Round "10"]
[TimeControl "180+2"]
[Date "2023.03.28"]
[WhiteClock "0:01:30"]
[BlackClock "0:01:53"]

1. e4 {[%clk 0:02:59]}  c5 {[%clk 0:02:59]} 2. Nf3 {[%clk 0:02:57]}  Nc6 {[%clk 0:02:59]} 3. d4 {[%clk 0:02:58]}  cxd4 {[%clk 0:03:00]} 4. Nxd4 {[%clk 0:02:58]}  Nf6 {[%clk 0:03:00]} 5. Nc3 {[%clk 0:02:58]}  d6 {[%clk 0:03:01]} 6. f3 {[%clk 0:02:55]}  e5 {[%clk 0:03:00]} 7. Ndb5 {[%clk 0:02:53]}  a6 {[%clk 0:02:56]} 8. Na3 {[%clk 0:02:52]}  Be6 {[%clk 0:02:56]} 9. Bg5 {[%clk 0:02:50]}  Be7 {[%clk 0:02:39]} 10. Bxf6 {[%clk 0:02:45]}  Bxf6 {[%clk 0:02:38]} 11. Nd5 {[%clk 0:02:45]}  Bg5 {[%clk 0:02:38]} 12. c4 {[%clk 0:02:40]}  O-O {[%clk 0:02:36]} 13. Nc2 {[%clk 0:02:36]}  f5 {[%clk 0:02:25]} 14. Bd3 {[%clk 0:02:33]}  fxe4 {[%clk 0:02:18]} 15. Bxe4 {[%clk 0:02:33]}  Kh8 {[%clk 0:02:16]} 16. O-O {[%clk 0:02:32]}  Rc8 {[%clk 0:02:13]} 17. Qd3 {[%clk 0:02:25]}  Ne7 {[%clk 0:02:11]} 18. b3 {[%clk 0:02:15]}  b5 {[%clk 0:02:08]} 19. cxb5 {[%clk 0:02:09]}  axb5 {[%clk 0:02:08]} 20. Nxe7 {[%clk 0:02:06]}  Qxe7 {[%clk 0:02:06]} 21. Qxb5 {[%clk 0:01:56]}  d5 {[%clk 0:02:05]} 22. Bd3 {[%clk 0:01:54]}  Rf6 {[%clk 0:01:58]} 23. Nb4 {[%clk 0:01:47]}  Be3+ {[%clk 0:01:55]} 24. Kh1 {[%clk 0:01:41]}  Rh6 {[%clk 0:01:54]} 25. Nxd5 {[%clk 0:01:30]}  Rxh2+ {[%clk 0:01:53]} 0-1


[Site "https://www.chess.com"]

[Event "Titled Tuesday Blitz March 28 Early 2023"]
[White "Ciuffoletti, Paolo"]
[Black "Lauridsen, Jesper Morch"]
[WhiteFideId "807630"]
[BlackFideId "1401890"]
[WhiteElo "2143"]
[BlackElo "2228"]
[Result "1-0"]
[Round "10"]
[TimeControl "180+2"]
[Date "2023.03.28"]
[WhiteClock "0:00:05"]
[BlackClock "0:00:13"]

1. e4 {[%clk 0:03:00]}  c5 {[%clk 0:02:56]} 2. d4 {[%clk 0:02:59]}  cxd4 {[%clk 0:02:56]} 3. c3 {[%clk 0:02:59]}  dxc3 {[%clk 0:02:57]} 4. Nxc3 {[%clk 0:02:59]}  Nc6 {[%clk 0:02:57]} 5. Nf3 {[%clk 0:02:59]}  e6 {[%clk 0:02:57]} 6. Bc4 {[%clk 0:02:59]}  a6 {[%clk 0:02:57]} 7. O-O {[%clk 0:02:59]}  Nge7 {[%clk 0:02:56]} 8. Bg5 {[%clk 0:02:57]}  f6 {[%clk 0:02:55]} 9. Bh4 {[%clk 0:02:53]}  b5 {[%clk 0:02:52]} 10. Bb3 {[%clk 0:02:51]}  Ng6 {[%clk 0:02:46]} 11. Bg3 {[%clk 0:02:50]}  h6 {[%clk 0:02:45]} 12. Nh4 {[%clk 0:02:37]}  Nxh4 {[%clk 0:02:43]} 13. Bxh4 {[%clk 0:02:35]}  Qe7 {[%clk 0:02:34]} 14. f4 {[%clk 0:02:27]}  g6 {[%clk 0:02:18]} 15. Rc1 {[%clk 0:01:58]}  Bb7 {[%clk 0:02:16]} 16. Nd5 {[%clk 0:01:54]}  exd5 {[%clk 0:02:12]} 17. exd5 {[%clk 0:01:53]}  Qe3+ {[%clk 0:02:00]} 18. Kh1 {[%clk 0:01:52]}  Ne7 {[%clk 0:01:59]} 19. Bxf6 {[%clk 0:01:23]}  Rh7 {[%clk 0:01:59]} 20. d6 {[%clk 0:01:05]}  Qe4 {[%clk 0:01:25]} 21. Qd2 {[%clk 0:00:44]}  Qf5 {[%clk 0:00:44]} 22. dxe7 {[%clk 0:00:26]}  Qxf6 {[%clk 0:00:37]} 23. exf8=Q+ {[%clk 0:00:25]}  Kxf8 {[%clk 0:00:37]} 24. Qb4+ {[%clk 0:00:15]}  Re7 {[%clk 0:00:32]} 25. Rfe1 {[%clk 0:00:13]}  Re8 {[%clk 0:00:28]} 26. Rcd1 {[%clk 0:00:12]}  Qd4 {[%clk 0:00:23]} 27. Rxd4 {[%clk 0:00:08]}  a5 {[%clk 0:00:13]} 28. Qd6 {[%clk 0:00:06]}  Kg7 {[%clk 0:00:13]} 29. Rxe7+ {[%clk 0:00:05]} 1-0


[Site "https://www.chess.com"]

[Event "Titled Tuesday Blitz March 28 Early 2023"]
[White "Lohani, Sujana"]
[Black "Sanchez, Robert"]
[WhiteFideId "12311987"]
[BlackFideId "2034360"]
[WhiteElo "1718"]
[BlackElo "2119"]
[Result "1-0"]
[Round "10"]
[TimeControl "180+2"]
[Date "2023.03.28"]
[WhiteClock "0:00:30"]
[BlackClock "0:01:56"]

1. d4 {[%clk 0:03:00]}  d5 {[%clk 0:02:59]} 2. Nf3 {[%clk 0:03:00]}  c6 {[%clk 0:02:56]} 3. c4 {[%clk 0:03:01]}  Nf6 {[%clk 0:02:57]} 4. e3 {[%clk 0:02:53]}  Bf5 {[%clk 0:02:55]} 5. Nc3 {[%clk 0:02:52]}  dxc4 {[%clk 0:02:54]} 6. Bxc4 {[%clk 0:02:51]}  e6 {[%clk 0:02:54]} 7. O-O {[%clk 0:02:51]}  Nbd7 {[%clk 0:02:54]} 8. Re1 {[%clk 0:02:49]}  Bg6 {[%clk 0:02:53]} 9. e4 {[%clk 0:02:48]}  Be7 {[%clk 0:02:54]} 10. Bg5 {[%clk 0:02:36]}  O-O {[%clk 0:02:52]} 11. e5 {[%clk 0:02:21]}  Nd5 {[%clk 0:02:51]} 12. Bxe7 {[%clk 0:02:20]}  Qxe7 {[%clk 0:02:51]} 13. Ne4 {[%clk 0:02:20]}  Bxe4 {[%clk 0:02:45]} 14. Rxe4 {[%clk 0:02:19]}  Qb4 {[%clk 0:02:45]} 15. Qc2 {[%clk 0:02:13]}  N7b6 {[%clk 0:02:44]} 16. Bd3 {[%clk 0:02:07]}  g6 {[%clk 0:02:42]} 17. a3 {[%clk 0:02:04]}  Qe7 {[%clk 0:02:42]} 18. Qd2 {[%clk 0:01:59]}  Rfd8 {[%clk 0:02:38]} 19. Qh6 {[%clk 0:01:57]}  Qf8 {[%clk 0:02:39]} 20. Qf4 {[%clk 0:01:54]}  Qg7 {[%clk 0:02:38]} 21. Qg3 {[%clk 0:01:47]}  Rac8 {[%clk 0:02:36]} 22. Rh4 {[%clk 0:01:46]}  c5 {[%clk 0:02:34]} 23. Ng5 {[%clk 0:01:40]}  h6 {[%clk 0:02:34]} 24. Ne4 {[%clk 0:01:39]}  cxd4 {[%clk 0:02:30]} 25. Rg4 {[%clk 0:01:13]}  Nd7 {[%clk 0:02:27]} 26. Nd6 {[%clk 0:01:04]}  Nxe5 {[%clk 0:02:22]} 27. Nxc8 {[%clk 0:01:02]}  Nxg4 {[%clk 0:02:20]} 28. Nxa7 {[%clk 0:00:52]}  Ne5 {[%clk 0:02:14]} 29. Be4 {[%clk 0:00:50]}  f5 {[%clk 0:02:10]} 30. Bc2 {[%clk 0:00:36]}  d3 {[%clk 0:01:55]} 31. Bxd3 {[%clk 0:00:31]}  f4 {[%clk 0:01:56]} 32. Qh3 {[%clk 0:00:30]} 1-0


[Site "https://www.chess.com"]